{"text_format":"1","workbook":"xlsx","n_sheets":2,"sheets":["الطلبيات","قاعدة البيانات التسليم"],"not_rendered":{"charts":0,"images":2,"macros":1,"external_links":1,"defined_names":12,"comments":0,"pivot_tables":0},"unopened":[],"bounds":{"document_bytes":16777216,"sheet_cells":100000,"rows_first":2000,"rows_last":500,"rows_between":2000,"halvings":0,"cell_chars":16384,"cell_head_chars":4096},"cells_cut":0,"cells_raw":0,"read":"whole","date_system":"1900"}

{"sheet":"الطلبيات","index":0,"n_rows":25,"n_cols":24,"rows_kept":25,"cut":false,"hidden":false,"merged":[]}
["رقم الطلب","تاريخ الطلب","كود الوكيل","رقم الهاتف","اسم الوكيل","عنوان الوكيل","موقع الوكيل","رقم الهاتف","الفئة","الحجم","اسم النكهة","طلبات","التسليم","تاريخ الشحن","المتبقي","كميات الطلب \nبالطن","كميات المسلم\nبالطن","الملاحظات","حالة الطلب","يوم الطلب","الشهر","السنة","N/A","التسليمات"]
[501,"2023-09-02",1055,7.3297326183700595E+17," مركز الدورة التسويقي/العبور","بغداد /تحت جسر الزعفرانية","الوسط",7.3297326183700595E+17,"PC_FLAT","S","Yoghurt&Herbs",672,{"$f":"IF(J2=\"S\",SUMIFS('قاعدة البيانات التسليم'!$I:$I,'قاعدة البيانات التسليم'!$A:$A,الطلبيات!A2,'قاعدة البيانات التسليم'!$G:$G,الطلبيات!I2,'قاعدة البيانات التسليم'!$H:$H,الطلبيات!K2),IF(الطلبيات!J2=\"M\",SUMIFS('قاعدة البيانات التسليم'!$J:$J,'قاعدة البيانات التسليم'!$A:$A,الطلبيات!A2,'قاعدة البيانات التسليم'!$G:$G,الطلبيات!I2,'قاعدة البيانات التسليم'!$H:$H,الطلبيات!K2),IF(الطلبيات!J2=\"L\",SUMIFS('قاعدة البيانات التسليم'!$K:$K,'قاعدة البيانات التسليم'!$A:$A,الطلبيات!A2,'قاعدة البيانات التسليم'!$G:$G,الطلبيات!I2,'قاعدة البيانات التسليم'!$H:$H,الطلبيات!K2),0)))","v":0},{"$f":"IF(M2=0,\"\",IFERROR(VLOOKUP(A2,'قاعدة البيانات التسليم'!A:F,6,0),\"\"))","v":""},{"$f":"L2-M2","v":672},0.58060800000000001,"","مفتوح","مفتوح",{"$f":"TEXT(B2,\"DD\")","v":"02"},{"$f":"TEXT(B2,\"mmmm\")","v":"September"},2023,{"$f":"IF(M2=0,0,IF(L2>M2,0.5,IF(L2<M2,1,IF(M2=L2,1,\"Error\"))))","v":0},{"$f":"IF(SUMIF(A:W,A:A,W:W)=0,\"لم يتم التسليم\",IF(COUNTIF(A:A,A:A)=SUMIF(A:W,A:A,W:W),\"تم التسليم\",IF(COUNTIF(A:A,A:A)>SUMIF(A:W,A:A,W:W),\"تسليم جزئي\",\"Error\")))","v":"لم يتم التسليم"}]
[501,"2023-09-02",1055,7.3297326183700595E+17," مركز الدورة التسويقي/العبور","بغداد /تحت جسر الزعفرانية","الوسط",7.3297326183700595E+17,"PC_FLAT","M","Tomato Ketchup",504,{"$f":"IF(J3=\"S\",SUMIFS('قاعدة البيانات التسليم'!$I:$I,'قاعدة البيانات التسليم'!$A:$A,الطلبيات!A3,'قاعدة البيانات التسليم'!$G:$G,الطلبيات!I3,'قاعدة البيانات التسليم'!$H:$H,الطلبيات!K3),IF(الطلبيات!J3=\"M\",SUMIFS('قاعدة البيانات التسليم'!$J:$J,'قاعدة البيانات التسليم'!$A:$A,الطلبيات!A3,'قاعدة البيانات التسليم'!$G:$G,الطلبيات!I3,'قاعدة البيانات التسليم'!$H:$H,الطلبيات!K3),IF(الطلبيات!J3=\"L\",SUMIFS('قاعدة البيانات التسليم'!$K:$K,'قاعدة البيانات التسليم'!$A:$A,الطلبيات!A3,'قاعدة البيانات التسليم'!$G:$G,الطلبيات!I3,'قاعدة البيانات التسليم'!$H:$H,الطلبيات!K3),0)))","v":0},{"$f":"IF(M3=0,\"\",IFERROR(VLOOKUP(A3,'قاعدة البيانات التسليم'!A:F,6,0),\"\"))","v":""},{"$f":"L3-M3","v":504},0.459648,"","مفتوح","مفتوح","02","September",2023,{"$f":"IF(M3=0,0,IF(L3>M3,0.5,IF(L3<M3,1,IF(M3=L3,1,\"Error\"))))","v":0},{"$f":"IF(SUMIF(A:W,A:A,W:W)=0,\"لم يتم التسليم\",IF(COUNTIF(A:A,A:A)=SUMIF(A:W,A:A,W:W),\"تم التسليم\",IF(COUNTIF(A:A,A:A)>SUMIF(A:W,A:A,W:W),\"تسليم جزئي\",\"Error\")))","v":"لم يتم التسليم"}]
[501,"2023-09-02",1055,7.3297326183700595E+17," مركز الدورة التسويقي/العبور","بغداد /تحت جسر الزعفرانية","الوسط",7.3297326183700595E+17,"PC_FLAT","L","Salt&Vinegar",1386,{"$f":"IF(J4=\"S\",SUMIFS('قاعدة البيانات التسليم'!$I:$I,'قاعدة البيانات التسليم'!$A:$A,الطلبيات!A4,'قاعدة البيانات التسليم'!$G:$G,الطلبيات!I4,'قاعدة البيانات التسليم'!$H:$H,الطلبيات!K4),IF(الطلبيات!J4=\"M\",SUMIFS('قاعدة البيانات التسليم'!$J:$J,'قاعدة البيانات التسليم'!$A:$A,الطلبيات!A4,'قاعدة البيانات التسليم'!$G:$G,الطلبيات!I4,'قاعدة البيانات التسليم'!$H:$H,الطلبيات!K4),IF(الطلبيات!J4=\"L\",SUMIFS('قاعدة البيانات التسليم'!$K:$K,'قاعدة البيانات التسليم'!$A:$A,الطلبيات!A4,'قاعدة البيانات التسليم'!$G:$G,الطلبيات!I4,'قاعدة البيانات التسليم'!$H:$H,الطلبيات!K4),0)))","v":0},{"$f":"IF(M4=0,\"\",IFERROR(VLOOKUP(A4,'قاعدة البيانات التسليم'!A:F,6,0),\"\"))","v":""},1386,1.297296,"","مفتوح","مفتوح","02","September",2023,0,{"$f":"IF(SUMIF(A:W,A:A,W:W)=0,\"لم يتم التسليم\",IF(COUNTIF(A:A,A:A)=SUMIF(A:W,A:A,W:W),\"تم التسليم\",IF(COUNTIF(A:A,A:A)>SUMIF(A:W,A:A,W:W),\"تسليم جزئي\",\"Error\")))","v":"لم يتم التسليم"}]
[501,"2023-09-02",1055,7.3297326183700595E+17," مركز الدورة التسويقي/العبور","بغداد /تحت جسر الزعفرانية","الوسط",7.3297326183700595E+17,"PC_MAX","M","Cheese&Onion",504,{"$f":"IF(J5=\"S\",SUMIFS('قاعدة البيانات التسليم'!$I:$I,'قاعدة البيانات التسليم'!$A:$A,الطلبيات!A5,'قاعدة البيانات التسليم'!$G:$G,الطلبيات!I5,'قاعدة البيانات التسليم'!$H:$H,الطلبيات!K5),IF(الطلبيات!J5=\"M\",SUMIFS('قاعدة البيانات التسليم'!$J:$J,'قاعدة البيانات التسليم'!$A:$A,الطلبيات!A5,'قاعدة البيانات التسليم'!$G:$G,الطلبيات!I5,'قاعدة البيانات التسليم'!$H:$H,الطلبيات!K5),IF(الطلبيات!J5=\"L\",SUMIFS('قاعدة البيانات التسليم'!$K:$K,'قاعدة البيانات التسليم'!$A:$A,الطلبيات!A5,'قاعدة البيانات التسليم'!$G:$G,الطلبيات!I5,'قاعدة البيانات التسليم'!$H:$H,الطلبيات!K5),0)))","v":0},{"$f":"IF(M5=0,\"\",IFERROR(VLOOKUP(A5,'قاعدة البيانات التسليم'!A:F,6,0),\"\"))","v":""},504,0.471744,"","مفتوح","مفتوح","02","September",2023,0,{"$f":"IF(SUMIF(A:W,A:A,W:W)=0,\"لم يتم التسليم\",IF(COUNTIF(A:A,A:A)=SUMIF(A:W,A:A,W:W),\"تم التسليم\",IF(COUNTIF(A:A,A:A)>SUMIF(A:W,A:A,W:W),\"تسليم جزئي\",\"Error\")))","v":"لم يتم التسليم"}]
[501,"2023-09-02",1055,7.3297326183700595E+17," مركز الدورة التسويقي/العبور","بغداد /تحت جسر الزعفرانية","الوسط",7.3297326183700595E+17,"PC_MAX","M","Yoghurt&Herbs",210,{"$f":"IF(J6=\"S\",SUMIFS('قاعدة البيانات التسليم'!$I:$I,'قاعدة البيانات التسليم'!$A:$A,الطلبيات!A6,'قاعدة البيانات التسليم'!$G:$G,الطلبيات!I6,'قاعدة البيانات التسليم'!$H:$H,الطلبيات!K6),IF(الطلبيات!J6=\"M\",SUMIFS('قاعدة البيانات التسليم'!$J:$J,'قاعدة البيانات التسليم'!$A:$A,الطلبيات!A6,'قاعدة البيانات التسليم'!$G:$G,الطلبيات!I6,'قاعدة البيانات التسليم'!$H:$H,الطلبيات!K6),IF(الطلبيات!J6=\"L\",SUMIFS('قاعدة البيانات التسليم'!$K:$K,'قاعدة البيانات التسليم'!$A:$A,الطلبيات!A6,'قاعدة البيانات التسليم'!$G:$G,الطلبيات!I6,'قاعدة البيانات التسليم'!$H:$H,الطلبيات!K6),0)))","v":0},{"$f":"IF(M6=0,\"\",IFERROR(VLOOKUP(A6,'قاعدة البيانات التسليم'!A:F,6,0),\"\"))","v":""},210,0.19656000000000001,"","مفتوح","مفتوح","02","September",2023,0,{"$f":"IF(SUMIF(A:W,A:A,W:W)=0,\"لم يتم التسليم\",IF(COUNTIF(A:A,A:A)=SUMIF(A:W,A:A,W:W),\"تم التسليم\",IF(COUNTIF(A:A,A:A)>SUMIF(A:W,A:A,W:W),\"تسليم جزئي\",\"Error\")))","v":"لم يتم التسليم"}]
[502,"2023-09-02",1055,7.3297326183700595E+17," مركز الدورة التسويقي/العبور","بغداد /تحت جسر الزعفرانية","الوسط",7.3297326183700595E+17,"PC_FLAT","L","Yoghurt&Herbs",2394,{"$f":"IF(J7=\"S\",SUMIFS('قاعدة البيانات التسليم'!$I:$I,'قاعدة البيانات التسليم'!$A:$A,الطلبيات!A7,'قاعدة البيانات التسليم'!$G:$G,الطلبيات!I7,'قاعدة البيانات التسليم'!$H:$H,الطلبيات!K7),IF(الطلبيات!J7=\"M\",SUMIFS('قاعدة البيانات التسليم'!$J:$J,'قاعدة البيانات التسليم'!$A:$A,الطلبيات!A7,'قاعدة البيانات التسليم'!$G:$G,الطلبيات!I7,'قاعدة البيانات التسليم'!$H:$H,الطلبيات!K7),IF(الطلبيات!J7=\"L\",SUMIFS('قاعدة البيانات التسليم'!$K:$K,'قاعدة البيانات التسليم'!$A:$A,الطلبيات!A7,'قاعدة البيانات التسليم'!$G:$G,الطلبيات!I7,'قاعدة البيانات التسليم'!$H:$H,الطلبيات!K7),0)))","v":0},{"$f":"IF(M7=0,\"\",IFERROR(VLOOKUP(A7,'قاعدة البيانات التسليم'!A:F,6,0),\"\"))","v":""},2394,2.2407840000000001,"","مفتوح","مفتوح","02","September",2023,0,{"$f":"IF(SUMIF(A:W,A:A,W:W)=0,\"لم يتم التسليم\",IF(COUNTIF(A:A,A:A)=SUMIF(A:W,A:A,W:W),\"تم التسليم\",IF(COUNTIF(A:A,A:A)>SUMIF(A:W,A:A,W:W),\"تسليم جزئي\",\"Error\")))","v":"لم يتم التسليم"}]
[502,"2023-09-02",1055,7.3297326183700595E+17," مركز الدورة التسويقي/العبور","بغداد /تحت جسر الزعفرانية","الوسط",7.3297326183700595E+17,"PC_FLAT","L","Tomato Ketchup",1008,{"$f":"IF(J8=\"S\",SUMIFS('قاعدة البيانات التسليم'!$I:$I,'قاعدة البيانات التسليم'!$A:$A,الطلبيات!A8,'قاعدة البيانات التسليم'!$G:$G,الطلبيات!I8,'قاعدة البيانات التسليم'!$H:$H,الطلبيات!K8),IF(الطلبيات!J8=\"M\",SUMIFS('قاعدة البيانات التسليم'!$J:$J,'قاعدة البيانات التسليم'!$A:$A,الطلبيات!A8,'قاعدة البيانات التسليم'!$G:$G,الطلبيات!I8,'قاعدة البيانات التسليم'!$H:$H,الطلبيات!K8),IF(الطلبيات!J8=\"L\",SUMIFS('قاعدة البيانات التسليم'!$K:$K,'قاعدة البيانات التسليم'!$A:$A,الطلبيات!A8,'قاعدة البيانات التسليم'!$G:$G,الطلبيات!I8,'قاعدة البيانات التسليم'!$H:$H,الطلبيات!K8),0)))","v":0},{"$f":"IF(M8=0,\"\",IFERROR(VLOOKUP(A8,'قاعدة البيانات التسليم'!A:F,6,0),\"\"))","v":""},1008,0.94348799999999999,"","مفتوح","مفتوح","02","September",2023,0,{"$f":"IF(SUMIF(A:W,A:A,W:W)=0,\"لم يتم التسليم\",IF(COUNTIF(A:A,A:A)=SUMIF(A:W,A:A,W:W),\"تم التسليم\",IF(COUNTIF(A:A,A:A)>SUMIF(A:W,A:A,W:W),\"تسليم جزئي\",\"Error\")))","v":"لم يتم التسليم"}]
[503,"2023-09-02",1033,"7326168693/07326183736","مركز البساتين التسويقي/العبور","بغداد/شارع القناة/حي البساتين/قرب جسر المثنى","الوسط","7326168693/07326183736","PC_FLAT","L","Salt&Vinegar",2310,{"$f":"IF(J9=\"S\",SUMIFS('قاعدة البيانات التسليم'!$I:$I,'قاعدة البيانات التسليم'!$A:$A,الطلبيات!A9,'قاعدة البيانات التسليم'!$G:$G,الطلبيات!I9,'قاعدة البيانات التسليم'!$H:$H,الطلبيات!K9),IF(الطلبيات!J9=\"M\",SUMIFS('قاعدة البيانات التسليم'!$J:$J,'قاعدة البيانات التسليم'!$A:$A,الطلبيات!A9,'قاعدة البيانات التسليم'!$G:$G,الطلبيات!I9,'قاعدة البيانات التسليم'!$H:$H,الطلبيات!K9),IF(الطلبيات!J9=\"L\",SUMIFS('قاعدة البيانات التسليم'!$K:$K,'قاعدة البيانات التسليم'!$A:$A,الطلبيات!A9,'قاعدة البيانات التسليم'!$G:$G,الطلبيات!I9,'قاعدة البيانات التسليم'!$H:$H,الطلبيات!K9),0)))","v":0},{"$f":"IF(M9=0,\"\",IFERROR(VLOOKUP(A9,'قاعدة البيانات التسليم'!A:F,6,0),\"\"))","v":""},2310,2.1621600000000001,"","مفتوح","مفتوح","02","September",2023,0,{"$f":"IF(SUMIF(A:W,A:A,W:W)=0,\"لم يتم التسليم\",IF(COUNTIF(A:A,A:A)=SUMIF(A:W,A:A,W:W),\"تم التسليم\",IF(COUNTIF(A:A,A:A)>SUMIF(A:W,A:A,W:W),\"تسليم جزئي\",\"Error\")))","v":"لم يتم التسليم"}]
[503,"2023-09-02",1033,"7326168693/07326183736","مركز البساتين التسويقي/العبور","بغداد/شارع القناة/حي البساتين/قرب جسر المثنى","الوسط","7326168693/07326183736","PC_FLAT","L","Yoghurt&Herbs",840,{"$f":"IF(J10=\"S\",SUMIFS('قاعدة البيانات التسليم'!$I:$I,'قاعدة البيانات التسليم'!$A:$A,الطلبيات!A10,'قاعدة البيانات التسليم'!$G:$G,الطلبيات!I10,'قاعدة البيانات التسليم'!$H:$H,الطلبيات!K10),IF(الطلبيات!J10=\"M\",SUMIFS('قاعدة البيانات التسليم'!$J:$J,'قاعدة البيانات التسليم'!$A:$A,الطلبيات!A10,'قاعدة البيانات التسليم'!$G:$G,الطلبيات!I10,'قاعدة البيانات التسليم'!$H:$H,الطلبيات!K10),IF(الطلبيات!J10=\"L\",SUMIFS('قاعدة البيانات التسليم'!$K:$K,'قاعدة البيانات التسليم'!$A:$A,الطلبيات!A10,'قاعدة البيانات التسليم'!$G:$G,الطلبيات!I10,'قاعدة البيانات التسليم'!$H:$H,الطلبيات!K10),0)))","v":0},{"$f":"IF(M10=0,\"\",IFERROR(VLOOKUP(A10,'قاعدة البيانات التسليم'!A:F,6,0),\"\"))","v":""},840,0.78624000000000005,"","مفتوح","مفتوح","02","September",2023,0,{"$f":"IF(SUMIF(A:W,A:A,W:W)=0,\"لم يتم التسليم\",IF(COUNTIF(A:A,A:A)=SUMIF(A:W,A:A,W:W),\"تم التسليم\",IF(COUNTIF(A:A,A:A)>SUMIF(A:W,A:A,W:W),\"تسليم جزئي\",\"Error\")))","v":"لم يتم التسليم"}]
[504,"2023-09-02",1033,"7326168693/07326183736","مركز البساتين التسويقي/العبور","بغداد/شارع القناة/حي البساتين/قرب جسر المثنى","الوسط","7326168693/07326183736","PC_FLAT","L","Tomato Ketchup",1932,{"$f":"IF(J11=\"S\",SUMIFS('قاعدة البيانات التسليم'!$I:$I,'قاعدة البيانات التسليم'!$A:$A,الطلبيات!A11,'قاعدة البيانات التسليم'!$G:$G,الطلبيات!I11,'قاعدة البيانات التسليم'!$H:$H,الطلبيات!K11),IF(الطلبيات!J11=\"M\",SUMIFS('قاعدة البيانات التسليم'!$J:$J,'قاعدة البيانات التسليم'!$A:$A,الطلبيات!A11,'قاعدة البيانات التسليم'!$G:$G,الطلبيات!I11,'قاعدة البيانات التسليم'!$H:$H,الطلبيات!K11),IF(الطلبيات!J11=\"L\",SUMIFS('قاعدة البيانات التسليم'!$K:$K,'قاعدة البيانات التسليم'!$A:$A,الطلبيات!A11,'قاعدة البيانات التسليم'!$G:$G,الطلبيات!I11,'قاعدة البيانات التسليم'!$H:$H,الطلبيات!K11),0)))","v":0},{"$f":"IF(M11=0,\"\",IFERROR(VLOOKUP(A11,'قاعدة البيانات التسليم'!A:F,6,0),\"\"))","v":""},1932,1.808352,"","مفتوح","مفتوح","02","September",2023,0,{"$f":"IF(SUMIF(A:W,A:A,W:W)=0,\"لم يتم التسليم\",IF(COUNTIF(A:A,A:A)=SUMIF(A:W,A:A,W:W),\"تم التسليم\",IF(COUNTIF(A:A,A:A)>SUMIF(A:W,A:A,W:W),\"تسليم جزئي\",\"Error\")))","v":"لم يتم التسليم"}]
[504,"2023-09-02",1033,"7326168693/07326183736","مركز البساتين التسويقي/العبور","بغداد/شارع القناة/حي البساتين/قرب جسر المثنى","الوسط","7326168693/07326183736","PC_MAX","S","Yoghurt&Herbs",1050,{"$f":"IF(J12=\"S\",SUMIFS('قاعدة البيانات التسليم'!$I:$I,'قاعدة البيانات التسليم'!$A:$A,الطلبيات!A12,'قاعدة البيانات التسليم'!$G:$G,الطلبيات!I12,'قاعدة البيانات التسليم'!$H:$H,الطلبيات!K12),IF(الطلبيات!J12=\"M\",SUMIFS('قاعدة البيانات التسليم'!$J:$J,'قاعدة البيانات التسليم'!$A:$A,الطلبيات!A12,'قاعدة البيانات التسليم'!$G:$G,الطلبيات!I12,'قاعدة البيانات التسليم'!$H:$H,الطلبيات!K12),IF(الطلبيات!J12=\"L\",SUMIFS('قاعدة البيانات التسليم'!$K:$K,'قاعدة البيانات التسليم'!$A:$A,الطلبيات!A12,'قاعدة البيانات التسليم'!$G:$G,الطلبيات!I12,'قاعدة البيانات التسليم'!$H:$H,الطلبيات!K12),0)))","v":0},{"$f":"IF(M12=0,\"\",IFERROR(VLOOKUP(A12,'قاعدة البيانات التسليم'!A:F,6,0),\"\"))","v":""},1050,0.95760000000000001,"","مفتوح","مفتوح","02","September",2023,0,{"$f":"IF(SUMIF(A:W,A:A,W:W)=0,\"لم يتم التسليم\",IF(COUNTIF(A:A,A:A)=SUMIF(A:W,A:A,W:W),\"تم التسليم\",IF(COUNTIF(A:A,A:A)>SUMIF(A:W,A:A,W:W),\"تسليم جزئي\",\"Error\")))","v":"لم يتم التسليم"}]
[504,"2023-09-02",1033,"7326168693/07326183736","مركز البساتين التسويقي/العبور","بغداد/شارع القناة/حي البساتين/قرب جسر المثنى","الوسط","7326168693/07326183736","PC_MAX","L","Cheese&Onion",84,{"$f":"IF(J13=\"S\",SUMIFS('قاعدة البيانات التسليم'!$I:$I,'قاعدة البيانات التسليم'!$A:$A,الطلبيات!A13,'قاعدة البيانات التسليم'!$G:$G,الطلبيات!I13,'قاعدة البيانات التسليم'!$H:$H,الطلبيات!K13),IF(الطلبيات!J13=\"M\",SUMIFS('قاعدة البيانات التسليم'!$J:$J,'قاعدة البيانات التسليم'!$A:$A,الطلبيات!A13,'قاعدة البيانات التسليم'!$G:$G,الطلبيات!I13,'قاعدة البيانات التسليم'!$H:$H,الطلبيات!K13),IF(الطلبيات!J13=\"L\",SUMIFS('قاعدة البيانات التسليم'!$K:$K,'قاعدة البيانات التسليم'!$A:$A,الطلبيات!A13,'قاعدة البيانات التسليم'!$G:$G,الطلبيات!I13,'قاعدة البيانات التسليم'!$H:$H,الطلبيات!K13),0)))","v":0},{"$f":"IF(M13=0,\"\",IFERROR(VLOOKUP(A13,'قاعدة البيانات التسليم'!A:F,6,0),\"\"))","v":""},84,8.0640000000000003E-2,"","مفتوح","مفتوح","02","September",2023,0,{"$f":"IF(SUMIF(A:W,A:A,W:W)=0,\"لم يتم التسليم\",IF(COUNTIF(A:A,A:A)=SUMIF(A:W,A:A,W:W),\"تم التسليم\",IF(COUNTIF(A:A,A:A)>SUMIF(A:W,A:A,W:W),\"تسليم جزئي\",\"Error\")))","v":"لم يتم التسليم"}]
[505,"2023-09-02",1077,"07326183885/ 07507181191","مركز الموصل التسويقي /العبور","الموصل/ ","الشمال","07326183885/ 07507181191","PC_FLAT","M","Yoghurt&Herbs",1470,{"$f":"IF(J14=\"S\",SUMIFS('قاعدة البيانات التسليم'!$I:$I,'قاعدة البيانات التسليم'!$A:$A,الطلبيات!A14,'قاعدة البيانات التسليم'!$G:$G,الطلبيات!I14,'قاعدة البيانات التسليم'!$H:$H,الطلبيات!K14),IF(الطلبيات!J14=\"M\",SUMIFS('قاعدة البيانات التسليم'!$J:$J,'قاعدة البيانات التسليم'!$A:$A,الطلبيات!A14,'قاعدة البيانات التسليم'!$G:$G,الطلبيات!I14,'قاعدة البيانات التسليم'!$H:$H,الطلبيات!K14),IF(الطلبيات!J14=\"L\",SUMIFS('قاعدة البيانات التسليم'!$K:$K,'قاعدة البيانات التسليم'!$A:$A,الطلبيات!A14,'قاعدة البيانات التسليم'!$G:$G,الطلبيات!I14,'قاعدة البيانات التسليم'!$H:$H,الطلبيات!K14),0)))","v":0},{"$f":"IF(M14=0,\"\",IFERROR(VLOOKUP(A14,'قاعدة البيانات التسليم'!A:F,6,0),\"\"))","v":""},1470,1.3406400000000001,"","مفتوح","مفتوح","02","September",2023,0,{"$f":"IF(SUMIF(A:W,A:A,W:W)=0,\"لم يتم التسليم\",IF(COUNTIF(A:A,A:A)=SUMIF(A:W,A:A,W:W),\"تم التسليم\",IF(COUNTIF(A:A,A:A)>SUMIF(A:W,A:A,W:W),\"تسليم جزئي\",\"Error\")))","v":"لم يتم التسليم"}]
[505,"2023-09-02",1077,"07326183885/ 07507181191","مركز الموصل التسويقي /العبور","الموصل/ ","الشمال","07326183885/ 07507181191","PC_FLAT","L","Salt&Vinegar",1008,{"$f":"IF(J15=\"S\",SUMIFS('قاعدة البيانات التسليم'!$I:$I,'قاعدة البيانات التسليم'!$A:$A,الطلبيات!A15,'قاعدة البيانات التسليم'!$G:$G,الطلبيات!I15,'قاعدة البيانات التسليم'!$H:$H,الطلبيات!K15),IF(الطلبيات!J15=\"M\",SUMIFS('قاعدة البيانات التسليم'!$J:$J,'قاعدة البيانات التسليم'!$A:$A,الطلبيات!A15,'قاعدة البيانات التسليم'!$G:$G,الطلبيات!I15,'قاعدة البيانات التسليم'!$H:$H,الطلبيات!K15),IF(الطلبيات!J15=\"L\",SUMIFS('قاعدة البيانات التسليم'!$K:$K,'قاعدة البيانات التسليم'!$A:$A,الطلبيات!A15,'قاعدة البيانات التسليم'!$G:$G,الطلبيات!I15,'قاعدة البيانات التسليم'!$H:$H,الطلبيات!K15),0)))","v":0},{"$f":"IF(M15=0,\"\",IFERROR(VLOOKUP(A15,'قاعدة البيانات التسليم'!A:F,6,0),\"\"))","v":""},1008,0.94348799999999999,"","مفتوح","مفتوح","02","September",2023,0,{"$f":"IF(SUMIF(A:W,A:A,W:W)=0,\"لم يتم التسليم\",IF(COUNTIF(A:A,A:A)=SUMIF(A:W,A:A,W:W),\"تم التسليم\",IF(COUNTIF(A:A,A:A)>SUMIF(A:W,A:A,W:W),\"تسليم جزئي\",\"Error\")))","v":"لم يتم التسليم"}]
[505,"2023-09-02",1077,"07326183885/ 07507181191","مركز الموصل التسويقي /العبور","الموصل/ ","الشمال","07326183885/ 07507181191","PC_FLAT","L","Yoghurt&Herbs",672,{"$f":"IF(J16=\"S\",SUMIFS('قاعدة البيانات التسليم'!$I:$I,'قاعدة البيانات التسليم'!$A:$A,الطلبيات!A16,'قاعدة البيانات التسليم'!$G:$G,الطلبيات!I16,'قاعدة البيانات التسليم'!$H:$H,الطلبيات!K16),IF(الطلبيات!J16=\"M\",SUMIFS('قاعدة البيانات التسليم'!$J:$J,'قاعدة البيانات التسليم'!$A:$A,الطلبيات!A16,'قاعدة البيانات التسليم'!$G:$G,الطلبيات!I16,'قاعدة البيانات التسليم'!$H:$H,الطلبيات!K16),IF(الطلبيات!J16=\"L\",SUMIFS('قاعدة البيانات التسليم'!$K:$K,'قاعدة البيانات التسليم'!$A:$A,الطلبيات!A16,'قاعدة البيانات التسليم'!$G:$G,الطلبيات!I16,'قاعدة البيانات التسليم'!$H:$H,الطلبيات!K16),0)))","v":0},{"$f":"IF(M16=0,\"\",IFERROR(VLOOKUP(A16,'قاعدة البيانات التسليم'!A:F,6,0),\"\"))","v":""},672,0.628992,"","مفتوح","مفتوح","02","September",2023,0,{"$f":"IF(SUMIF(A:W,A:A,W:W)=0,\"لم يتم التسليم\",IF(COUNTIF(A:A,A:A)=SUMIF(A:W,A:A,W:W),\"تم التسليم\",IF(COUNTIF(A:A,A:A)>SUMIF(A:W,A:A,W:W),\"تسليم جزئي\",\"Error\")))","v":"لم يتم التسليم"}]
[506,"2023-09-02",1077,"07326183885/ 07507181191","مركز الموصل التسويقي /العبور","الموصل/ ","الشمال","07326183885/ 07507181191","PC_MAX","S","Cheese&Onion",1638,{"$f":"IF(J17=\"S\",SUMIFS('قاعدة البيانات التسليم'!$I:$I,'قاعدة البيانات التسليم'!$A:$A,الطلبيات!A17,'قاعدة البيانات التسليم'!$G:$G,الطلبيات!I17,'قاعدة البيانات التسليم'!$H:$H,الطلبيات!K17),IF(الطلبيات!J17=\"M\",SUMIFS('قاعدة البيانات التسليم'!$J:$J,'قاعدة البيانات التسليم'!$A:$A,الطلبيات!A17,'قاعدة البيانات التسليم'!$G:$G,الطلبيات!I17,'قاعدة البيانات التسليم'!$H:$H,الطلبيات!K17),IF(الطلبيات!J17=\"L\",SUMIFS('قاعدة البيانات التسليم'!$K:$K,'قاعدة البيانات التسليم'!$A:$A,الطلبيات!A17,'قاعدة البيانات التسليم'!$G:$G,الطلبيات!I17,'قاعدة البيانات التسليم'!$H:$H,الطلبيات!K17),0)))","v":0},{"$f":"IF(M17=0,\"\",IFERROR(VLOOKUP(A17,'قاعدة البيانات التسليم'!A:F,6,0),\"\"))","v":""},1638,1.4938560000000001,"","مفتوح","مفتوح","02","September",2023,0,{"$f":"IF(SUMIF(A:W,A:A,W:W)=0,\"لم يتم التسليم\",IF(COUNTIF(A:A,A:A)=SUMIF(A:W,A:A,W:W),\"تم التسليم\",IF(COUNTIF(A:A,A:A)>SUMIF(A:W,A:A,W:W),\"تسليم جزئي\",\"Error\")))","v":"لم يتم التسليم"}]
[506,"2023-09-02",1077,"07326183885/ 07507181191","مركز الموصل التسويقي /العبور","الموصل/ ","الشمال","07326183885/ 07507181191","PC_MAX","S","Yoghurt&Herbs",1134,{"$f":"IF(J18=\"S\",SUMIFS('قاعدة البيانات التسليم'!$I:$I,'قاعدة البيانات التسليم'!$A:$A,الطلبيات!A18,'قاعدة البيانات التسليم'!$G:$G,الطلبيات!I18,'قاعدة البيانات التسليم'!$H:$H,الطلبيات!K18),IF(الطلبيات!J18=\"M\",SUMIFS('قاعدة البيانات التسليم'!$J:$J,'قاعدة البيانات التسليم'!$A:$A,الطلبيات!A18,'قاعدة البيانات التسليم'!$G:$G,الطلبيات!I18,'قاعدة البيانات التسليم'!$H:$H,الطلبيات!K18),IF(الطلبيات!J18=\"L\",SUMIFS('قاعدة البيانات التسليم'!$K:$K,'قاعدة البيانات التسليم'!$A:$A,الطلبيات!A18,'قاعدة البيانات التسليم'!$G:$G,الطلبيات!I18,'قاعدة البيانات التسليم'!$H:$H,الطلبيات!K18),0)))","v":0},{"$f":"IF(M18=0,\"\",IFERROR(VLOOKUP(A18,'قاعدة البيانات التسليم'!A:F,6,0),\"\"))","v":""},1134,1.034208,"","مفتوح","مفتوح","02","September",2023,0,{"$f":"IF(SUMIF(A:W,A:A,W:W)=0,\"لم يتم التسليم\",IF(COUNTIF(A:A,A:A)=SUMIF(A:W,A:A,W:W),\"تم التسليم\",IF(COUNTIF(A:A,A:A)>SUMIF(A:W,A:A,W:W),\"تسليم جزئي\",\"Error\")))","v":"لم يتم التسليم"}]
[506,"2023-09-02",1077,"07326183885/ 07507181191","مركز الموصل التسويقي /العبور","الموصل/ ","الشمال","07326183885/ 07507181191","PC_MAX","M","Yoghurt&Herbs",420,{"$f":"IF(J19=\"S\",SUMIFS('قاعدة البيانات التسليم'!$I:$I,'قاعدة البيانات التسليم'!$A:$A,الطلبيات!A19,'قاعدة البيانات التسليم'!$G:$G,الطلبيات!I19,'قاعدة البيانات التسليم'!$H:$H,الطلبيات!K19),IF(الطلبيات!J19=\"M\",SUMIFS('قاعدة البيانات التسليم'!$J:$J,'قاعدة البيانات التسليم'!$A:$A,الطلبيات!A19,'قاعدة البيانات التسليم'!$G:$G,الطلبيات!I19,'قاعدة البيانات التسليم'!$H:$H,الطلبيات!K19),IF(الطلبيات!J19=\"L\",SUMIFS('قاعدة البيانات التسليم'!$K:$K,'قاعدة البيانات التسليم'!$A:$A,الطلبيات!A19,'قاعدة البيانات التسليم'!$G:$G,الطلبيات!I19,'قاعدة البيانات التسليم'!$H:$H,الطلبيات!K19),0)))","v":0},{"$f":"IF(M19=0,\"\",IFERROR(VLOOKUP(A19,'قاعدة البيانات التسليم'!A:F,6,0),\"\"))","v":""},420,0.39312000000000002,"","مفتوح","مفتوح","02","September",2023,0,{"$f":"IF(SUMIF(A:W,A:A,W:W)=0,\"لم يتم التسليم\",IF(COUNTIF(A:A,A:A)=SUMIF(A:W,A:A,W:W),\"تم التسليم\",IF(COUNTIF(A:A,A:A)>SUMIF(A:W,A:A,W:W),\"تسليم جزئي\",\"Error\")))","v":"لم يتم التسليم"}]
[506,"2023-09-02",1077,"07326183885/ 07507181191","مركز الموصل التسويقي /العبور","الموصل/ ","الشمال","07326183885/ 07507181191","PC_MAX","L","Yoghurt&Herbs",168,{"$f":"IF(J20=\"S\",SUMIFS('قاعدة البيانات التسليم'!$I:$I,'قاعدة البيانات التسليم'!$A:$A,الطلبيات!A20,'قاعدة البيانات التسليم'!$G:$G,الطلبيات!I20,'قاعدة البيانات التسليم'!$H:$H,الطلبيات!K20),IF(الطلبيات!J20=\"M\",SUMIFS('قاعدة البيانات التسليم'!$J:$J,'قاعدة البيانات التسليم'!$A:$A,الطلبيات!A20,'قاعدة البيانات التسليم'!$G:$G,الطلبيات!I20,'قاعدة البيانات التسليم'!$H:$H,الطلبيات!K20),IF(الطلبيات!J20=\"L\",SUMIFS('قاعدة البيانات التسليم'!$K:$K,'قاعدة البيانات التسليم'!$A:$A,الطلبيات!A20,'قاعدة البيانات التسليم'!$G:$G,الطلبيات!I20,'قاعدة البيانات التسليم'!$H:$H,الطلبيات!K20),0)))","v":0},{"$f":"IF(M20=0,\"\",IFERROR(VLOOKUP(A20,'قاعدة البيانات التسليم'!A:F,6,0),\"\"))","v":""},168,0.16128000000000001,"","مفتوح","مفتوح","02","September",2023,0,{"$f":"IF(SUMIF(A:W,A:A,W:W)=0,\"لم يتم التسليم\",IF(COUNTIF(A:A,A:A)=SUMIF(A:W,A:A,W:W),\"تم التسليم\",IF(COUNTIF(A:A,A:A)>SUMIF(A:W,A:A,W:W),\"تسليم جزئي\",\"Error\")))","v":"لم يتم التسليم"}]
[507,"2023-09-02",1077,7310951923,"محمع الرمادي التسويقي/العبور","الرمادي","الشمال",7310951923,"PC_FLAT","S","Salt&Vinegar",630,{"$f":"IF(J21=\"S\",SUMIFS('قاعدة البيانات التسليم'!$I:$I,'قاعدة البيانات التسليم'!$A:$A,الطلبيات!A21,'قاعدة البيانات التسليم'!$G:$G,الطلبيات!I21,'قاعدة البيانات التسليم'!$H:$H,الطلبيات!K21),IF(الطلبيات!J21=\"M\",SUMIFS('قاعدة البيانات التسليم'!$J:$J,'قاعدة البيانات التسليم'!$A:$A,الطلبيات!A21,'قاعدة البيانات التسليم'!$G:$G,الطلبيات!I21,'قاعدة البيانات التسليم'!$H:$H,الطلبيات!K21),IF(الطلبيات!J21=\"L\",SUMIFS('قاعدة البيانات التسليم'!$K:$K,'قاعدة البيانات التسليم'!$A:$A,الطلبيات!A21,'قاعدة البيانات التسليم'!$G:$G,الطلبيات!I21,'قاعدة البيانات التسليم'!$H:$H,الطلبيات!K21),0)))","v":0},{"$f":"IF(M21=0,\"\",IFERROR(VLOOKUP(A21,'قاعدة البيانات التسليم'!A:F,6,0),\"\"))","v":""},630,0.54432000000000003,"","مفتوح","مفتوح","02","September",2023,0,{"$f":"IF(SUMIF(A:W,A:A,W:W)=0,\"لم يتم التسليم\",IF(COUNTIF(A:A,A:A)=SUMIF(A:W,A:A,W:W),\"تم التسليم\",IF(COUNTIF(A:A,A:A)>SUMIF(A:W,A:A,W:W),\"تسليم جزئي\",\"Error\")))","v":"لم يتم التسليم"}]
[507,"2023-09-02",1077,7310951923,"محمع الرمادي التسويقي/العبور","الرمادي","الشمال",7310951923,"PC_FLAT","M","Salt&Vinegar",378,{"$f":"IF(J22=\"S\",SUMIFS('قاعدة البيانات التسليم'!$I:$I,'قاعدة البيانات التسليم'!$A:$A,الطلبيات!A22,'قاعدة البيانات التسليم'!$G:$G,الطلبيات!I22,'قاعدة البيانات التسليم'!$H:$H,الطلبيات!K22),IF(الطلبيات!J22=\"M\",SUMIFS('قاعدة البيانات التسليم'!$J:$J,'قاعدة البيانات التسليم'!$A:$A,الطلبيات!A22,'قاعدة البيانات التسليم'!$G:$G,الطلبيات!I22,'قاعدة البيانات التسليم'!$H:$H,الطلبيات!K22),IF(الطلبيات!J22=\"L\",SUMIFS('قاعدة البيانات التسليم'!$K:$K,'قاعدة البيانات التسليم'!$A:$A,الطلبيات!A22,'قاعدة البيانات التسليم'!$G:$G,الطلبيات!I22,'قاعدة البيانات التسليم'!$H:$H,الطلبيات!K22),0)))","v":0},{"$f":"IF(M22=0,\"\",IFERROR(VLOOKUP(A22,'قاعدة البيانات التسليم'!A:F,6,0),\"\"))","v":""},378,0.34473599999999999,"","مفتوح","مفتوح","02","September",2023,0,{"$f":"IF(SUMIF(A:W,A:A,W:W)=0,\"لم يتم التسليم\",IF(COUNTIF(A:A,A:A)=SUMIF(A:W,A:A,W:W),\"تم التسليم\",IF(COUNTIF(A:A,A:A)>SUMIF(A:W,A:A,W:W),\"تسليم جزئي\",\"Error\")))","v":"لم يتم التسليم"}]
[507,"2023-09-02",1077,7310951923,"محمع الرمادي التسويقي/العبور","الرمادي","الشمال",7310951923,"PC_FLAT","L","Salt&Vinegar",756,{"$f":"IF(J23=\"S\",SUMIFS('قاعدة البيانات التسليم'!$I:$I,'قاعدة البيانات التسليم'!$A:$A,الطلبيات!A23,'قاعدة البيانات التسليم'!$G:$G,الطلبيات!I23,'قاعدة البيانات التسليم'!$H:$H,الطلبيات!K23),IF(الطلبيات!J23=\"M\",SUMIFS('قاعدة البيانات التسليم'!$J:$J,'قاعدة البيانات التسليم'!$A:$A,الطلبيات!A23,'قاعدة البيانات التسليم'!$G:$G,الطلبيات!I23,'قاعدة البيانات التسليم'!$H:$H,الطلبيات!K23),IF(الطلبيات!J23=\"L\",SUMIFS('قاعدة البيانات التسليم'!$K:$K,'قاعدة البيانات التسليم'!$A:$A,الطلبيات!A23,'قاعدة البيانات التسليم'!$G:$G,الطلبيات!I23,'قاعدة البيانات التسليم'!$H:$H,الطلبيات!K23),0)))","v":0},{"$f":"IF(M23=0,\"\",IFERROR(VLOOKUP(A23,'قاعدة البيانات التسليم'!A:F,6,0),\"\"))","v":""},756,0.70761600000000002,"","مفتوح","مفتوح","02","September",2023,0,{"$f":"IF(SUMIF(A:W,A:A,W:W)=0,\"لم يتم التسليم\",IF(COUNTIF(A:A,A:A)=SUMIF(A:W,A:A,W:W),\"تم التسليم\",IF(COUNTIF(A:A,A:A)>SUMIF(A:W,A:A,W:W),\"تسليم جزئي\",\"Error\")))","v":"لم يتم التسليم"}]
[507,"2023-09-02",1077,7310951923,"محمع الرمادي التسويقي/العبور","الرمادي","الشمال",7310951923,"PC_FLAT","L","Yoghurt&Herbs",504,{"$f":"IF(J24=\"S\",SUMIFS('قاعدة البيانات التسليم'!$I:$I,'قاعدة البيانات التسليم'!$A:$A,الطلبيات!A24,'قاعدة البيانات التسليم'!$G:$G,الطلبيات!I24,'قاعدة البيانات التسليم'!$H:$H,الطلبيات!K24),IF(الطلبيات!J24=\"M\",SUMIFS('قاعدة البيانات التسليم'!$J:$J,'قاعدة البيانات التسليم'!$A:$A,الطلبيات!A24,'قاعدة البيانات التسليم'!$G:$G,الطلبيات!I24,'قاعدة البيانات التسليم'!$H:$H,الطلبيات!K24),IF(الطلبيات!J24=\"L\",SUMIFS('قاعدة البيانات التسليم'!$K:$K,'قاعدة البيانات التسليم'!$A:$A,الطلبيات!A24,'قاعدة البيانات التسليم'!$G:$G,الطلبيات!I24,'قاعدة البيانات التسليم'!$H:$H,الطلبيات!K24),0)))","v":0},{"$f":"IF(M24=0,\"\",IFERROR(VLOOKUP(A24,'قاعدة البيانات التسليم'!A:F,6,0),\"\"))","v":""},504,0.471744,"","مفتوح","مفتوح","02","September",2023,0,{"$f":"IF(SUMIF(A:W,A:A,W:W)=0,\"لم يتم التسليم\",IF(COUNTIF(A:A,A:A)=SUMIF(A:W,A:A,W:W),\"تم التسليم\",IF(COUNTIF(A:A,A:A)>SUMIF(A:W,A:A,W:W),\"تسليم جزئي\",\"Error\")))","v":"لم يتم التسليم"}]
[507,"2023-09-02",1077,7310951923,"محمع الرمادي التسويقي/العبور","الرمادي","الشمال",7310951923,"PC_MAX","S","Yoghurt&Herbs",504,{"$f":"IF(J25=\"S\",SUMIFS('قاعدة البيانات التسليم'!$I:$I,'قاعدة البيانات التسليم'!$A:$A,الطلبيات!A25,'قاعدة البيانات التسليم'!$G:$G,الطلبيات!I25,'قاعدة البيانات التسليم'!$H:$H,الطلبيات!K25),IF(الطلبيات!J25=\"M\",SUMIFS('قاعدة البيانات التسليم'!$J:$J,'قاعدة البيانات التسليم'!$A:$A,الطلبيات!A25,'قاعدة البيانات التسليم'!$G:$G,الطلبيات!I25,'قاعدة البيانات التسليم'!$H:$H,الطلبيات!K25),IF(الطلبيات!J25=\"L\",SUMIFS('قاعدة البيانات التسليم'!$K:$K,'قاعدة البيانات التسليم'!$A:$A,الطلبيات!A25,'قاعدة البيانات التسليم'!$G:$G,الطلبيات!I25,'قاعدة البيانات التسليم'!$H:$H,الطلبيات!K25),0)))","v":0},{"$f":"IF(M25=0,\"\",IFERROR(VLOOKUP(A25,'قاعدة البيانات التسليم'!A:F,6,0),\"\"))","v":""},504,0.459648,"","مفتوح","مفتوح","02","September",2023,0,{"$f":"IF(SUMIF(A:W,A:A,W:W)=0,\"لم يتم التسليم\",IF(COUNTIF(A:A,A:A)=SUMIF(A:W,A:A,W:W),\"تم التسليم\",IF(COUNTIF(A:A,A:A)>SUMIF(A:W,A:A,W:W),\"تسليم جزئي\",\"Error\")))","v":"لم يتم التسليم"}]

{"sheet":"قاعدة البيانات التسليم","index":1,"n_rows":1801,"n_cols":15,"rows_kept":1801,"cut":false,"hidden":false,"merged":[]}
["رقم الطلب","رقم التسليم","كود الوكيل","اسم الوكيل","تاريخ الطلب","تاريخ الشحن","الفئة","اسم النكهة","الحجم الصغير","الحجم الوسط","الحجم الكبير","كميات المسلم بالطن S","كميات المسلم بالطن M","كميات المسلم بالطن L","الملاحظات"]
[3363,"DV202309001",{"$f":"IFERROR(VLOOKUP($A2,الطلبيات!$A:$T,MATCH(C$1,الطلبيات!$A$1:$T$1,0),0),\"رقم طلب غير مطابق أو غير موجود\")","v":"رقم طلب غير مطابق أو غير موجود"},{"$f":"IFERROR(VLOOKUP($A2,الطلبيات!$A:$T,MATCH(D$1,الطلبيات!$A$1:$T$1,0),0),\"غير مطابق\")","v":"غير مطابق"},{"$f":"IFERROR(VLOOKUP($A2,الطلبيات!$A:$T,MATCH(E$1,الطلبيات!$A$1:$T$1,0),0),\"\")","v":""},"2023-09-02","PC_FLAT","Tomato Ketchup",756,0,0]
[3363,"DV202309001",null,null,null,null,"PC_MAX","Cheese&Onion",1092,1008,0]
[3362,"DV202309002",null,null,null,null,"PC_FLAT","Tomato Ketchup",504,0,0]
[3362,"DV202309002",null,null,null,null,"PC_MAX","Cheese&Onion",1008,1008,0]
[3362,"DV202309002",null,null,null,null,"PC_MAX","Yoghurt&Herbs",462,0,0]
[3364,"DV202309003",null,null,null,null,"PC_FLAT","Tomato Ketchup",1638,0,0]
[3347,"DV202309004",null,null,null,null,"PC_FLAT","Salt&Vinegar",0,2940,0]
[3350,"DV202309005",null,null,null,null,"PC_FLAT","Tomato Ketchup",1764,0,0]
[3350,"DV202309005",null,null,null,null,"PC_FLAT","Salt&Vinegar",672,462,0]
[3361,"DV202309006",null,null,null,null,"PC_FLAT","Tomato Ketchup",2646,0,0]
[]
[]
[]
[]
[]
[]
[]
[]
[]
[]
[]
[]
[]
[]
[]
[]
[]
[]
[]
[]
[]
[]
[]
[]
[]
[]
[]
[]
[]
[]
[]
[]
[]
[]
[]
[]
[]
[]
[]
[]
[]
[]
[]
[]
[]
[]
[]
[]
[]
[]
[]
[]
[]
[]
[]
[]
[]
[]
[]
[]
[]
[]
[]
[]
[]
[]
[]
[]
[]
[]
[]
[]
[]
[]
[]
[]
[]
[]
[]
[]
[]
[]
[]
[]
[]
[]
[]
[]
[]
[]
[]
[]
[]
[]
[]
[]
[]
[]
[]
[]
[]
[]
[]
[]
[]
[]
[]
[]
[]
[]
[]
[]
[]
[]
[]
[]
[]
[]
[]
[]
[]
[]
[]
[]
[]
[]
[]
[]
[]
[]
[]
[]
[]
[]
[]
[]
[]
[]
[]
[]
[]
[]
[]
[]
[]
[]
[]
[]
[]
[]
[]
[]
[]
[]
[]
[]
[]
[]
[]
[]
[]
[]
[]
[]
[]
[]
[]
[]
[]
[]
[]
[]
[]
[]
[]
[]
[]
[]
[]
[]
[]
[]
[]
[]
[]
[]
[]
[]
[]
[]
[]
[]
[]
[]
[]
[]
[]
[]
[]
[]
[]
[]
[]
[]
[]
[]
[]
[]
[]
[]
[]
[]
[]
[]
[]
[]
[]
[]
[]
[]
[]
[]
[]
[]
[]
[]
[]
[]
[]
[]
[]
[]
[]
[]
[]
[]
[]
[]
[]
[]
[]
[]
[]
[]
[]
[]
[]
[]
[]
[]
[]
[]
[]
[]
[]
[]
[]
[]
[]
[]
[]
[]
[]
[]
[]
[]
[]
[]
[]
[]
[]
[]
[]
[]
[]
[]
[]
[]
[]
[]
[]
[]
[]
[]
[]
[]
[]
[]
[]
[]
[]
[]
[]
[]
[]
[]
[]
[]
[]
[]
[]
[]
[]
[]
[]
[]
[]
[]
[]
[]
[]
[]
[]
[]
[]
[]
[]
[]
[]
[]
[]
[]
[]
[]
[]
[]
[]
[]
[]
[]
[]
[]
[]
[]
[]
[]
[]
[]
[]
[]
[]
[]
[]
[]
[]
[]
[]
[]
[]
[]
[]
[]
[]
[]
[]
[]
[]
[]
[]
[]
[]
[]
[]
[]
[]
[]
[]
[]
[]
[]
[]
[]
[]
[]
[]
[]
[]
[]
[]
[]
[]
[]
[]
[]
[]
[]
[]
[]
[]
[]
[]
[]
[]
[]
[]
[]
[]
[]
[]
[]
[]
[]
[]
[]
[]
[]
[]
[]
[]
[]
[]
[]
[]
[]
[]
[]
[]
[]
[]
[]
[]
[]
[]
[]
[]
[]
[]
[]
[]
[]
[]
[]
[]
[]
[]
[]
[]
[]
[]
[]
[]
[]
[]
[]
[]
[]
[]
[]
[]
[]
[]
[]
[]
[]
[]
[]
[]
[]
[]
[]
[]
[]
[]
[]
[]
[]
[]
[]
[]
[]
[]
[]
[]
[]
[]
[]
[]
[]
[]
[]
[]
[]
[]
[]
[]
[]
[]
[]
[]
[]
[]
[]
[]
[]
[]
[]
[]
[]
[]
[]
[]
[]
[]
[]
[]
[]
[]
[]
[]
[]
[]
[]
[]
[]
[]
[]
[]
[]
[]
[]
[]
[]
[]
[]
[]
[]
[]
[]
[]
[]
[]
[]
[]
[]
[]
[]
[]
[]
[]
[]
[]
[]
[]
[]
[]
[]
[]
[]
[]
[]
[]
[]
[]
[]
[]
[]
[]
[]
[]
[]
[]
[]
[]
[]
[]
[]
[]
[]
[]
[]
[]
[]
[]
[]
[]
[]
[]
[]
[]
[]
[]
[]
[]
[]
[]
[]
[]
[]
[]
[]
[]
[]
[]
[]
[]
[]
[]
[]
[]
[]
[]
[]
[]
[]
[]
[]
[]
[]
[]
[]
[]
[]
[]
[]
[]
[]
[]
[]
[]
[]
[]
[]
[]
[]
[]
[]
[]
[]
[]
[]
[]
[]
[]
[]
[]
[]
[]
[]
[]
[]
[]
[]
[]
[]
[]
[]
[]
[]
[]
[]
[]
[]
[]
[]
[]
[]
[]
[]
[]
[]
[]
[]
[]
[]
[]
[]
[]
[]
[]
[]
[]
[]
[]
[]
[]
[]
[]
[]
[]
[]
[]
[]
[]
[]
[]
[]
[]
[]
[]
[]
[]
[]
[]
[]
[]
[]
[]
[]
[]
[]
[]
[]
[]
[]
[]
[]
[]
[]
[]
[]
[]
[]
[]
[]
[]
[]
[]
[]
[]
[]
[]
[]
[]
[]
[]
[]
[]
[]
[]
[]
[]
[]
[]
[]
[]
[]
[]
[]
[]
[]
[]
[]
[]
[]
[]
[]
[]
[]
[]
[]
[]
[]
[]
[]
[]
[]
[]
[]
[]
[]
[]
[]
[]
[]
[]
[]
[]
[]
[]
[]
[]
[]
[]
[]
[]
[]
[]
[]
[]
[]
[]
[]
[]
[]
[]
[]
[]
[]
[]
[]
[]
[]
[]
[]
[]
[]
[]
[]
[]
[]
[]
[]
[]
[]
[]
[]
[]
[]
[]
[]
[]
[]
[]
[]
[]
[]
[]
[]
[]
[]
[]
[]
[]
[]
[]
[]
[]
[]
[]
[]
[]
[]
[]
[]
[]
[]
[]
[]
[]
[]
[]
[]
[]
[]
[]
[]
[]
[]
[]
[]
[]
[]
[]
[]
[]
[]
[]
[]
[]
[]
[]
[]
[]
[]
[]
[]
[]
[]
[]
[]
[]
[]
[]
[]
[]
[]
[]
[]
[]
[]
[]
[]
[]
[]
[]
[]
[]
[]
[]
[]
[]
[]
[]
[]
[]
[]
[]
[]
[]
[]
[]
[]
[]
[]
[]
[]
[]
[]
[]
[]
[]
[]
[]
[]
[]
[]
[]
[]
[]
[]
[]
[]
[]
[]
[]
[]
[]
[]
[]
[]
[]
[]
[]
[]
[]
[]
[]
[]
[]
[]
[]
[]
[]
[]
[]
[]
[]
[]
[]
[]
[]
[]
[]
[]
[]
[]
[]
[]
[]
[]
[]
[]
[]
[]
[]
[]
[]
[]
[]
[]
[]
[]
[]
[]
[]
[]
[]
[]
[]
[]
[]
[]
[]
[]
[]
[]
[]
[]
[]
[]
[]
[]
[]
[]
[]
[]
[]
[]
[]
[]
[]
[]
[]
[]
[]
[]
[]
[]
[]
[]
[]
[]
[]
[]
[]
[]
[]
[]
[]
[]
[]
[]
[]
[]
[]
[]
[]
[]
[]
[]
[]
[]
[]
[]
[]
[]
[]
[]
[]
[]
[]
[]
[]
[]
[]
[]
[]
[]
[]
[]
[]
[]
[]
[]
[]
[]
[]
[]
[]
[]
[]
[]
[]
[]
[]
[]
[]
[]
[]
[]
[]
[]
[]
[]
[]
[]
[]
[]
[]
[]
[]
[]
[]
[]
[]
[]
[]
[]
[]
[]
[]
[]
[]
[]
[]
[]
[]
[]
[]
[]
[]
[]
[]
[]
[]
[]
[]
[]
[]
[]
[]
[]
[]
[]
[]
[]
[]
[]
[]
[]
[]
[]
[]
[]
[]
[]
[]
[]
[]
[]
[]
[]
[]
[]
[]
[]
[]
[]
[]
[]
[]
[]
[]
[]
[]
[]
[]
[]
[]
[]
[]
[]
[]
[]
[]
[]
[]
[]
[]
[]
[]
[]
[]
[]
[]
[]
[]
[]
[]
[]
[]
[]
[]
[]
[]
[]
[]
[]
[]
[]
[]
[]
[]
[]
[]
[]
[]
[]
[]
[]
[]
[]
[]
[]
[]
[]
[]
[]
[]
[]
[]
[]
[]
[]
[]
[]
[]
[]
[]
[]
[]
[]
[]
[]
[]
[]
[]
[]
[]
[]
[]
[]
[]
[]
[]
[]
[]
[]
[]
[]
[]
[]
[]
[]
[]
[]
[]
[]
[]
[]
[]
[]
[]
[]
[]
[]
[]
[]
[]
[]
[]
[]
[]
[]
[]
[]
[]
[]
[]
[]
[]
[]
[]
[]
[]
[]
[]
[]
[]
[]
[]
[]
[]
[]
[]
[]
[]
[]
[]
[]
[]
[]
[]
[]
[]
[]
[]
[]
[]
[]
[]
[]
[]
[]
[]
[]
[]
[]
[]
[]
[]
[]
[]
[]
[]
[]
[]
[]
[]
[]
[]
[]
[]
[]
[]
[]
[]
[]
[]
[]
[]
[]
[]
[]
[]
[]
[]
[]
[]
[]
[]
[]
[]
[]
[]
[]
[]
[]
[]
[]
[]
[]
[]
[]
[]
[]
[]
[]
[]
[]
[]
[]
[]
[]
[]
[]
[]
[]
[]
[]
[]
[]
[]
[]
[]
[]
[]
[]
[]
[]
[]
[]
[]
[]
[]
[]
[]
[]
[]
[]
[]
[]
[]
[]
[]
[]
[]
[]
[]
[]
[]
[]
[]
[]
[]
[]
[]
[]
[]
[]
[]
[]
[]
[]
[]
[]
[]
[]
[]
[]
[]
[]
[]
[]
[]
[]
[]
[]
[]
[]
[]
[]
[]
[]
[]
[]
[]
[]
[]
[]
[]
[]
[]
[]
[]
[]
[]
[]
[]
[]
[]
[]
[]
[]
[]
[]
[]
[]
[]
[]
[]
[]
[]
[]
[]
[]
[]
[]
[]
[]
[]
[]
[]
[]
[]
[]
[]
[]
[]
[]
[]
[]
[]
[]
[]
[]
[]
[]
[]
[]
[]
[]
[]
[]
[]
[]
[]
[]
[]
[]
[]
[]
[]
[]
[]
[]
[]
[]
[]
[]
[]
[]
[]
[]
[]
[]
[]
[]
[]
[]
[]
[]
[]
[]
[]
[]
[]
[]
[]
[]
[]
[]
[]
[]
[]
[]
[]
[]
[]
[]
[]
[]
[]
[]
[]
[]
[]
[]
[]
[]
[]
[]
[]
[]
[]
[]
[]
[]
[]
[]
[]
[]
[]
[]
[]
[]
[]
[]
[]
[]
[]
[]
[]
[]
[]
[]
[]
[]
[]
[]
[]
[]
[]
[]
[]
[]
[]
[]
[]
[]
[]
[]
[]
[]
[]
[]
[]
[]
[]
[]
[]
[]
[]
[]
[]
[]
[]
[]
[]
[]
[]
[]
[]
[]
[]
[]
[]
[]
[]
[]
[]
[]
[]
[]
[]
[]
[]
[]
[]
[]
[]
[]
[]
[]
[]
[]
[]
[]
[]
[]
[]
[]
[]
[]
[]
[]
[]
[]
[]
[]
[]
[]
[]
[]
[]
[]
[]
[]
[]
[]
[]
[]
[]
[]
[]
[]
[]
[]
[]
[]
[]
[]
[]
[]
[]
[]
[]
[]
[]
[]
[]
[]
[]
[]
[]
[]
[]
[]
[]
[]
[]
[]
[]
[]
[]
[]
[]
[]
[]
[]
[]
[]
[]
[]
[]
[]
[]
[]
[]
[]
[]
[]
[]
[]
[]
[]
[]
[]
[]
[]
[]
[]
[]
[]
[]
[]
[]
[]
[]
[]
[]
[]
[]
[]
[]
[]
[]
[]
[]
[]
[]
[]
[]
[]
[]
[]
[]
[]
[]
[]
[]
[]
[]
[]
[]
[]
[]
[]
[]
[]
[]
[]
[]
[]
[]
[]
[]
[]
[]
[]
[]
[]
[]
[]
[]
[]
[]
[]
[]
[]
[]
[]
[]
[]
[]
[]
[]
[]
[]
[]
[]
[]
[]
[]
[]
[]
[]
[]
[]
[null,null,null,null,null,null,null,null,null,null,null,null,null,null,"10:57:17"]